Cogmind - Beta 17.1 @@@ ROGUE MODE // 2026.09.19 @ 21:07:41 Player: Err. String Expected Got Nil Result: Escaped! Performance ------------- Evolutions (9) 4500 Regions Visited (25) 5000 Robots Destroyed (571) 2855 Value Destroyed (24391) 24391 Prototype IDs (55) 1100 Alien Tech Used (0) 0 Bonus (17986) 17986 TOTAL SCORE: 55832 Bonus ------- Triggered High Security 500 High Alert Combat Kills 7497 Follower Combat Kills 1925 Hunted by Unchained 500 Entered Garrisons 200 Used RIF Installer 500 Network Hubs Disabled 200 Met Data Miner 300 Built Enhanced Grunts 300 A7 Reached Mainframe 300 Met R17 at Cetus 500 Met R17 at Research 2000 Scanned by Researcher 500 Win 3000 Friendly Fire -236 Cogmind --------- Core Integrity 1357/1600 Matter 25/300 Energy 868/1290 System Corruption 23% Temperature Cool (16) Movement Treading (150) Location To Epsilon Eridani Parts ------- > --- POWER (3) -------- Reinforced Antimatter Reactor Reinforced Antimatter Reactor Particle Reactor > --- PROPULSION (6) --- Advanced Heavy Treads Advanced Heavy Treads Advanced Heavy Siege Treads > --- UTILITY (12) ----- Advanced Heat Sink Advanced Heat Sink Advanced Heat Sink Huge Storage Unit Advanced Energy Well Core Analyzer Advanced Weapon Cycler SHELL Armor Graphene Brace Advanced Force Field > --- WEAPON (4) ------- Enhanced Hardcell Cannon > --- INVENTORY (25) --- Quantum Reactor Light Quantum Reactor Improved Heavy Siege Treads Energy Well (350) Energy Well (350) Large Matter Pod (0) Long-range Sensor Array Long-range Sensor Array IFF Parser Advanced Terrain Scan Processor Advanced Force Field Long-range Tractor Beam Enhanced Quantum Rifle Compact HERF Cannon Nova Cannon Railgun Heavy Linear Accelerator Advanced Micro-nuke Launcher Improved Plasma Cutter Nanosword Peak State ------------ > --- POWER ------------ Reinforced Antimatter Reactor Particle Reactor Quantum Reactor > --- PROPULSION ------- Advanced Heavy Treads Advanced Heavy Treads Advanced Heavy Siege Treads > --- UTILITY ---------- Advanced Heat Sink Advanced Heat Sink Advanced Heat Sink Huge Storage Unit Advanced Energy Well Core Analyzer Advanced Weapon Cycler SHELL Armor Graphene Brace Advanced Force Field > --- WEAPON ----------- Enhanced Hardcell Cannon Perforator Nanosword > --- INVENTORY -------- Improved Heavy Siege Treads Improved Antigrav System Energy Well Energy Well Large Matter Pod Long-range Sensor Array Long-range Sensor Array IFF Parser Advanced Terrain Scan Processor Advanced Force Field Long-range Tractor Beam Enhanced Quantum Rifle Compact HERF Cannon Nova Cannon Railgun Heavy Linear Accelerator Enhanced Hardcell Cannon Advanced Micro-nuke Launcher Improved Plasma Cutter [Rating: 213] Favorites ----------- Power Quantum Reactor Engine Heavy Ion Engine Power Core Neutrino Core Reactor Quantum Reactor Propulsion Light Treads Treads Light Treads Leg Aluminum Leg Wheel Wheel Utility Advanced Heat Sink Device Advanced Heat Sink Storage Huge Storage Unit Processor Core Analyzer Hackware Advanced Hacking Suite Protection Improved Medium Armor Plating Weapon Minigun Energy Gun Advanced Variable Charge Gun Energy Cannon Nova Cannon Ballistic Gun Minigun Ballistic Cannon Enhanced Hardcell Cannon Launcher Advanced Micro-nuke Launcher Special Weapon Remote Datajack Impact Weapon Heavy Hammer Slashing Weapon Nanosword Special Melee Weapon Advanced Datajack Build | -11 -10 -10 -9 -9 -8 -8 -8 -7 -7 -7 -7 -7 -7 -6 -6 -5 -5 -5 -5 -5 -4 -3 -3 -2 -1 ------- Run | Yrd Mat Min Mat Min Mat Sto Gar Fac Was Fac Low Low Dat Pro Fac Fac Ext Cet Arc Hub Fac Res Tes Res Acc Slots Evolved 18 | . . . 2 . 2 . . 2 . . . . . . 2 2 . . . . 2 2 . 2 2 Power 2 | . . . . . . . . . . . . . . . 1 . . . . . . . . . 1 Propulsion 4 | . . . 1 . 1 . . . . . . . . . . . . . . . . 2 . . . Utility 10 | . . . . . 1 . . 2 . . . . . . 1 2 . . . . 1 . . 2 1 Weapon 2 | . . . 1 . . . . . . . . . . . . . . . . . 1 . . . . Parts Attached 297 | 3 11 5 18 . 19 10 3 12 3 1 2 4 1 6 37 55 14 8 7 1 16 9 25 10 17 Power 27 | . 1 2 2 . . . . 1 . . . . . 1 4 2 3 1 . . 1 . 1 2 6 Engine 7 | . 1 2 2 . . . . 1 . . . . . 1 . . . . . . . . . . . Core 8 | . . . . . . . . . . . . . . . 1 2 3 . . . 1 . 1 . . Reactor 12 | . . . . . . . . . . . . . . . 3 . . 1 . . . . . 2 6 Propulsion 79 | 2 2 . 6 . 11 7 . 4 . . . 1 . 1 11 15 3 . . . 3 1 6 3 3 Treads 50 | 2 2 . 6 . 11 7 . 4 . . . 1 . 1 7 2 . . . . 1 . . 3 3 Leg . | . . . . . . . . . . . . . . . . . . . . . . . . . . Wheel 29 | . . . . . . . . . . . . . . . 4 13 3 . . . 2 1 6 . . Hover . | . . . . . . . . . . . . . . . . . . . . . . . . . . Flight . | . . . . . . . . . . . . . . . . . . . . . . . . . . Utility 104 | 1 4 2 3 . 6 1 1 2 3 1 2 2 . 2 13 19 6 3 3 1 8 4 10 3 4 Device 47 | 1 . 1 . . 2 . . . 1 . 1 2 . . 6 10 3 . 2 . 6 2 7 2 1 Storage 11 | . 2 . 1 . . . . . 1 . . . . . 2 1 . 1 . . . . . . 3 Processor 13 | . . . 1 . 1 . . 1 . . . . . 1 2 3 . . . . 1 1 1 1 . Hackware 8 | . . . . . 1 . . . 1 . . . . . . 3 . . 1 . 1 . 1 . . Protection 25 | . 2 1 1 . 2 1 1 1 . 1 1 . . 1 3 2 3 2 . 1 . 1 1 . . Artifact . | . . . . . . . . . . . . . . . . . . . . . . . . . . Weapon 87 | . 4 1 7 . 2 2 2 5 . . . 1 1 2 9 19 2 4 4 . 4 4 8 2 4 Energy Gun 12 | . 2 . . . . . . . . . . . . 2 1 1 . 2 2 . . . 1 . 1 Energy Cannon 11 | . . . . . . . . 1 . . . . . . 1 4 . 1 . . 2 1 1 . . Ballistic Gun 34 | . 1 1 5 . 2 1 1 2 . . . . 1 . 6 8 1 1 1 . 1 2 . . . Ballistic Cannon 11 | . . . . . . . . . . . . . . . 1 3 . . . . . . 3 2 2 Launcher 8 | . . . . . . . 1 . . . . 1 . . . 3 . . . . 1 . 2 . . Special Weapon 4 | . 1 . . . . . . 2 . . . . . . . . . . . . . . . . 1 Impact Weapon 2 | . . . 2 . . . . . . . . . . . . . . . . . . . . . . Slashing Weapon 4 | . . . . . . 1 . . . . . . . . . . 1 . . . . 1 1 . . Piercing Weapon . | . . . . . . . . . . . . . . . . . . . . . . . . . . Special Melee Weapon 1 | . . . . . . . . . . . . . . . . . . . 1 . . . . . . Unidentified Prototypes 24 | . . . 1 . . . . . . . . . . . 1 4 . 5 . . 1 2 10 . . Corrupted Parts 2 | . . . . . . . . . . . . . . . . . . . 2 . . . . . . System Corruption 8 | . . . . . . . . . . . . . . . . . . . 8 . . . . . . Parts Lost 80 | . 2 3 2 . 3 . 2 2 . . 2 4 . 4 21 26 3 1 . . . . 1 . 4 Power 9 | . . 2 . . . . . . . . . . . 1 2 2 . . . . . . 1 . 1 Propulsion 32 | . 1 . 2 . 1 . . . . . 2 1 . 1 10 11 2 . . . . . . . 1 Utility 19 | . 1 . . . . . 1 . . . . 2 . . 6 7 1 . . . . . . . 1 Weapon 20 | . . 1 . . 2 . 1 2 . . . 1 . 2 3 6 . 1 . . . . . . 1 Highest Loss Streak 12 | . 1 2 2 . 2 . 1 1 . . 2 4 . 2 7 12 1 1 . . . . 1 . 2 To Critical Strikes . | . . . . . . . . . . . . . . . . . . . . . . . . . . Average Backups 20 | 3 11 19 19 20 19 19 19 19 21 21 20 20 22 20 21 20 21 21 22 23 24 23 22 22 20 Power 1 | 1 1 . 1 1 1 1 1 1 1 2 2 2 2 1 1 . 1 2 2 2 2 2 1 2 1 Propulsion 2 | 1 2 3 3 5 4 4 4 4 4 4 3 2 2 1 1 . . . . . . . 1 2 2 Utility 10 | . 5 9 7 7 8 9 8 9 10 10 10 10 10 10 10 10 11 11 11 13 12 14 14 12 10 Weapon 5 | 1 3 5 6 6 5 4 4 4 3 3 3 4 6 5 6 8 7 7 7 7 7 6 4 4 6 Tool/Special . | . . . . . . . . . . . . . . . . . . . . . . . . . . Unused Backups 64 | 9 . . 9 . 6 4 1 2 . . . . . . 8 6 1 4 . . 2 2 3 2 5 Power 4 | 1 . . 1 . . . . . . . . . . . . . . . . . . 1 . . 1 Propulsion 13 | 5 . . 1 . 1 4 . . . . . . . . . . . . . . . . . 1 1 Utility 25 | 1 . . 2 . 4 . 1 1 . . . . . . 4 3 . 2 . . 2 1 3 . 1 Weapon 21 | 2 . . 5 . 1 . . 1 . . . . . . 4 2 1 2 . . . . . 1 2 Tool/Special 1 | . . . . . . . . . . . . . . . . 1 . . . . . . . . . Average Slot Usage (%) 94 | . 99 99 99 100 99 100 99 99 100 99 99 99 78 100 99 94 93 93 93 77 89 88 83 76 78 Engine 4 | . 13 13 11 11 9 9 9 7 7 7 7 7 7 7 . . . . . . . . . . . Core 2 | . . . . . . . . . . . . . . . 2 4 11 6 5 5 4 4 4 3 . Reactor 4 | . . . . . . . . . . . . . . . 9 6 . 4 5 5 5 4 4 4 11 Treads 18 | . 28 28 32 33 36 36 36 30 30 30 29 30 30 30 25 1 . . . . . . . 11 12 Wheel 5 | . . . . . . . . . . . . . . . . 17 16 17 17 17 10 17 18 2 . Device 11 | . 6 . 1 . 3 4 . 5 5 4 6 9 15 14 13 13 14 10 5 1 17 17 15 20 22 Storage 7 | . 14 14 11 11 9 9 9 7 7 7 7 7 7 7 6 5 5 5 5 5 5 4 4 4 5 Processor 8 | . . . . . 8 9 9 14 15 15 15 15 15 15 12 10 11 11 11 5 5 4 4 7 7 Hackware 3 | . . . . . 3 . . . 6 7 . . . . . 8 11 11 11 11 14 14 6 . . Protection 5 | . 7 13 9 11 2 4 9 8 1 2 7 4 . . 5 3 1 5 10 5 2 1 3 4 4 Energy Gun 2 | . 14 14 1 . . . . . . . . . . 6 2 . . 4 4 5 3 1 6 5 . Energy Cannon 2 | . . . . . . . . 3 . . . 4 . 7 4 3 5 5 . . 2 4 1 1 1 Ballistic Gun 12 | . 13 14 31 33 26 26 26 16 21 23 22 17 1 7 10 8 6 4 10 11 9 8 3 1 . Ballistic Cannon 1 | . . . . . . . . . . . . . . . . 4 4 . . . . . 1 2 8 Peak Build Rating 213 | 7 9 9 20 20 30 33 33 42 42 43 45 44 42 44 66 83 85 104 107 103 130 141 150 195 213 Average Rating 75 | 6 8 8 19 20 27 30 32 39 40 40 43 42 32 42 62 75 83 97 104 102 120 134 139 184 206 On Entrance 60 | 6 7 9 9 20 20 30 33 32 42 41 43 43 42 42 43 62 83 85 104 103 103 120 131 134 189 Avg Prop Armor Cover (%) 7 | . . . . . . . . . . . . . . . 4 8 . . . . . . . . . Naked Turns . | . . . . . . . . . . . . . . . . . . . . . . . . . . Heaviest Build 245 | 14 52 49 60 60 64 64 64 72 102 108 111 110 105 112 140 136 138 142 140 169 170 164 188 201 245 Greatest Support 220 | 40 40 40 60 60 80 92 92 92 85 82 82 82 80 80 80 54 54 48 48 48 56 88 88 215 220 Greatest Overweight (x) 31 | . 1 1 1 . . . . . 1 1 1 1 1 1 12 31 3 2 3 3 4 2 3 2 1 Average Overweight (x) 1 | . . 1 . . . . . . . 1 1 1 1 1 1 3 2 2 2 2 2 1 1 . . Largest Inventory Capacity 25 | 8 20 20 20 20 20 20 20 20 25 25 25 25 25 25 25 25 25 25 25 25 25 25 25 25 25 Average Capacity 23 | 8 18 20 20 20 20 20 20 20 23 25 25 25 25 25 25 25 25 25 25 25 25 25 25 25 25 Most Carried 25 | 8 20 20 20 20 20 20 20 20 25 25 24 25 25 25 25 25 25 25 25 25 25 25 25 25 25 Average Carried 22 | 3 11 19 19 20 19 19 19 19 23 24 23 23 24 23 24 23 24 24 24 23 24 24 24 24 23 Final Capacity 25 | 8 20 20 20 20 20 20 20 20 25 25 25 25 25 25 25 25 25 25 25 25 25 25 25 25 25 Final Carried 25 | 4 19 20 20 20 20 20 20 20 25 24 24 25 24 23 23 25 25 25 25 24 25 25 24 25 22 Class Distribution -------------------- 33% | Scavenger-Skirmisher 16% | Scavenger-Tank 10% | Mutant 8% | Scavenger-Assassin 7% | Scavenger-Gunner 7% | Tank 4% | Hacker-Assassin 3% | Skirmisher Dominant Class ---------------- Mutant | -10/Materials Mutant | -10/Mines Tank | -9/Materials Tank | -9/Mines Scavenger-Skirmisher | -8/Materials Scavenger-Tank | -8/Storage Tank | -8/Garrison Skirmisher | -7/Factory Scavenger-Gunner | -7/Waste Scavenger-Skirmisher | -7/Factory Scavenger-Skirmisher | -7/Lower Caves Scavenger-Skirmisher | -7/Lower Caves Scavenger-Mutant | -7/Data Miner Scavenger-Skirmisher | -6/Proximity Caves Scavenger-Skirmisher | -6/Factory Scavenger-Skirmisher | -5/Factory Commander-Skirmisher | -5/Extension Commander-Gunner | -5/Cetus Scavenger-Tank | -5/Archives Scavenger-Tank | -5/Hub_04(d) Scavenger-Assassin | -4/Factory Hacker-Assassin | -3/Research Scavenger-Assassin | -3/Testing Scavenger-Assassin | -2/Research Scavenger-Tank | -1/Access Resources | -11 -10 -10 -9 -9 -8 -8 -8 -7 -7 -7 -7 -7 -7 -6 -6 -5 -5 -5 -5 -5 -4 -3 -3 -2 -1 ----------- Run | Yrd Mat Min Mat Min Mat Sto Gar Fac Was Fac Low Low Dat Pro Fac Fac Ext Cet Arc Hub Fac Res Tes Res Acc Matter Collected 22216 | 227 408 74 830 44 926 678 365 662 548 366 378 825 . 179 1591 2300 908 167 247 24 765 451 1537 799 6917 Remotely 7797 | . . . . . . . . . . . . . . . . . 245 . . . 237 319 594 321 6081 Salvage Created 28455 | 144 1197 196 851 84 1331 1040 409 1000 577 256 197 352 . 170 2511 3145 1148 . 204 . 758 628 1453 1416 9388 Parts 1319 | 13 62 14 48 5 81 58 39 53 7 8 10 16 . 15 146 147 56 . 15 . 30 24 76 66 330 Haulers Intercepted 27 | . 2 . 6 . 6 3 . . . . . . . . 1 1 . . . . . 3 1 1 3 Recyclers Shooed 28 | . 7 . 1 . . . . 2 . . . . . . 5 8 1 . . . . . 1 . 3 Parts Field Recycled . | . . . . . . . . . . . . . . . . . . . . . . . . . . Retrieved Matter . | . . . . . . . . . . . . . . . . . . . . . . . . . . Parts Self-Destructed 32 | . . . . . . . . . . . 8 11 . 13 . . . . . . . . . . . Prevented 1 | . . . . . . . . . . . 1 . . . . . . . . . . . . . . Parts Restored . | . . . . . . . . . . . . . . . . . . . . . . . . . . Kills | -11 -10 -10 -9 -9 -8 -8 -8 -7 -7 -7 -7 -7 -7 -6 -6 -5 -5 -5 -5 -5 -4 -3 -3 -2 -1 ------- Run | Yrd Mat Min Mat Min Mat Sto Gar Fac Was Fac Low Low Dat Pro Fac Fac Ext Cet Arc Hub Fac Res Tes Res Acc Combat Hostiles Destroyed 393 | . 19 10 12 2 13 18 14 14 2 5 9 4 . 5 39 41 13 . 1 . 10 6 18 12 126 Melee 3 | . . . . . . . . . . . . . . . . 1 . . . . . . . . 2 Guns 177 | . 19 10 12 2 13 18 11 11 2 5 3 2 . 3 21 17 6 . 1 . 3 1 11 3 3 Cannons 167 | . . . . . . . . 3 . . . 2 . 2 16 13 7 . . . 2 3 6 8 105 AOE 36 | . . . . . . . 3 . . . 6 . . . . 7 . . . . 4 2 . . 14 Classes Destroyed 29 | 2 8 . 1 . 1 1 3 1 1 . 1 4 . . 2 1 . . . . . . . . 3 Worker 37 | . 1 . . . 3 . . . . . . . . . 4 5 3 . . . . 1 8 . 12 Builder 38 | . 1 . . . 4 1 . 1 . . . . . . 2 4 3 . . . . 3 1 3 15 Tunneler 9 | 3 2 . . . . . . . . . . . . . . 3 . . . . 1 . . . . Hauler 27 | . 2 . 6 . 6 3 . . . . . . . . 1 1 . . . . . 3 1 1 3 Recycler 30 | 1 3 . 1 . 3 1 . 3 . . . . . . 2 5 1 . . . 2 . 1 3 4 Carrier 1 | . . . . . . . . . . . . . . . . . . . . . . . . . 1 Minesweeper 1 | . . . . . . . . . . . . 1 . . . . . . . . . . . . . Mechanic 2 | . 1 . . . . . . . . . . . . . . . . . . . . . . . 1 Operator 14 | . 1 . . . . 2 . 1 . . . . . . 1 3 1 . 3 . . . 2 . . Watcher 19 | . 2 . 1 . 1 . . . . . . . . . 3 4 3 . . . 1 . 1 1 2 Swarmer 64 | . 3 8 4 . . 4 5 . . . 3 . . 3 5 5 . . . . 4 1 . . 19 Cutter 3 | . . . . . . . 3 . . . . . . . . . . . . . . . . . . Saboteur 5 | . . . . . . . . . . . . . . . . 1 . . . . . . . . 4 Grunt 132 | . 16 2 1 2 7 8 3 9 . 5 . 2 . . 8 20 7 . . . . 2 5 . 35 Brawler 13 | . . . . . . . . . . . . 1 . . 1 . . . . . . . . . 11 Duelist 9 | . . . . . . 1 . . . . . . . . . . . . . . . . . . 8 Protector 7 | . . . . . . . 1 . . . . . . . . . . . . . . . . . 6 Sentry 43 | . . . 7 . 5 5 1 3 . . . . . . 6 3 4 . 1 . . 2 . 1 5 Demolisher 1 | . . . . . . . 1 . . . . . . . . . . . . . . . . . . Specialist 6 | . . . . . . . . . . . . . . . 4 . . . . . 2 . . . . Hunter 24 | . . . . . . . . . . . . . . . 5 3 2 . . . . 1 2 2 9 Programmer 66 | . . . . . . . . 2 . . 1 . . 2 9 9 . . . . 4 . 11 9 19 Heavy 3 | . . . . . 1 . . . . . . . . . 1 . . . . . . . . . 1 Behemoth 1 | . . . . . . . . . . . . 1 . . . . . . . . . . . . . Compactor 2 | . . . . . . . . . 2 . . . . . . . . . . . . . . . . Striker 4 | . . . . . . . . . . . . . . . . . . . . . . . . . 4 Executioner 5 | . . . . . . . . . . . . . . . . . . . . . . . . . 5 Decomposer 1 | . . . . . . . . . . . . . . 1 . . . . . . . . . . . Samaritan 2 | . . . . . . . . . . . . 2 . . . . . . . . . . . . . Thug 4 | . . . . . . . . . . . 4 . . . . . . . . . . . . . . Mutant 1 | . . . . . . . . . . . 1 . . . . . . . . . . . . . . Best Kill Streak 22 | 2 5 4 4 2 6 10 4 4 1 2 5 3 . 3 6 10 7 . 1 . 5 5 5 4 22 Combat Bots Only 19 | . 4 4 4 2 3 6 4 4 1 2 5 3 . 3 6 7 3 . 1 . 4 3 4 2 19 Max Kills in Single Turn 6 | 1 1 1 1 1 2 2 3 1 1 1 2 1 . 1 2 2 3 . 1 . 3 5 1 2 6 Gunslinging 1 | . . . . . . 1 . . . . . . . . . . . . . . . . . . . Exploded 4 | . . . . . . . 3 . . . 2 . . . . 2 . . . . 3 1 . . 4 Melee 1 | . . . . . . . . . . . . . . . . 1 . . . . . . . . 1 Uniques/NPCs Destroyed . | . . . . . . . . . . . . . . . . . . . . . . . . . . Combat | -11 -10 -10 -9 -9 -8 -8 -8 -7 -7 -7 -7 -7 -7 -6 -6 -5 -5 -5 -5 -5 -4 -3 -3 -2 -1 -------- Run | Yrd Mat Min Mat Min Mat Sto Gar Fac Was Fac Low Low Dat Pro Fac Fac Ext Cet Arc Hub Fac Res Tes Res Acc Hostile Shots Fired 2395 | . 86 69 35 5 35 64 29 78 . 12 67 68 . 20 364 273 65 9 1 . 74 32 264 77 668 Missed 652 | . 16 11 8 3 6 21 8 26 . 1 23 22 . 6 101 90 22 2 . . 25 7 76 23 155 Hits 1743 | . 70 58 27 2 29 43 21 52 . 11 44 46 . 14 263 183 43 7 1 . 49 25 188 54 513 Melee 13 | . . . . . . . . . . . . . . . . 3 . . . . . . . . 10 Projectile 1730 | . 70 58 27 2 29 43 21 52 . 11 44 46 . 14 263 180 43 7 1 . 49 25 188 54 503 AOE 9 | . . . . . . . 5 . . . . . . . . 1 . . . . . . . . 3 Critical Strikes 75 | . 2 . 1 . 1 1 . . . 3 . . . 1 5 11 1 . . . . 1 9 5 34 Actively Blocked 42 | . . . . . . . . . . . . . . . . . . . . . . . 3 5 34 Part Disruptions 12 | . . . . . . . . . . . . . . . 6 1 . . . . . . 3 . 2 Damage Taken 26463 | . 826 537 335 22 809 643 482 853 . 170 784 770 . 294 3405 3582 798 132 27 . 545 398 2425 761 7865 Core 2329 | . 143 78 25 . 105 72 84 121 . . 63 72 . 12 291 626 158 13 . . 13 23 131 56 243 Absorbed by Shields 7004 | . . . . . . . . . . . 76 60 . . 457 26 188 79 . . 300 170 1059 480 4109 Reduced by Siege Mode 925 | . . . . . . . . . . . . . . . . . . . . . . . . 55 870 Redirected to Shielding 21 | . . . . . . . . . . . . . . . . 21 . . . . . . . . . Regen/Repaired (Parts) 5251 | . 50 . . . . . . . . . 176 105 . . . . . . . . 151 . 1231 465 3073 Core Remaining (%) 69 | 100 . 11 . 93 . . 52 . . . . . . 61 65 . . . . 20 98 . 88 96 84 Volleys Fired 1253 | 10 105 30 47 4 53 57 28 42 46 15 22 28 . 6 166 154 54 7 12 . 33 31 72 27 204 Largest 4 | 2 2 2 3 3 3 3 3 3 3 3 3 3 . 3 3 3 3 2 3 . 4 4 4 4 4 Hottest 309 | 70 100 70 100 75 75 75 75 125 78 78 78 128 . 188 193 184 184 240 150 . 263 263 303 281 309 Shots Fired 2919 | 20 204 60 131 12 159 171 66 117 116 34 48 75 . 19 368 377 150 9 34 . 57 67 205 67 353 Gun 1979 | 20 201 60 128 12 159 171 65 98 107 31 39 54 . 13 235 223 66 5 34 . 25 31 143 35 24 Cannon 889 | . . . . . . . . 17 . . . 21 . 6 132 147 84 2 . . 30 32 62 32 324 Launcher 30 | . . . . . . . 1 . . . 9 . . . . 7 . 2 . . 2 4 . . 5 Special 21 | . 3 . 3 . . . . 2 9 3 . . . . 1 . . . . . . . . . . Kinetic 2045 | 10 101 30 122 12 159 171 65 98 107 31 39 54 . 6 196 265 99 1 24 . 22 25 104 36 268 Thermal 814 | 10 103 30 9 . . . . 17 . . . 21 . 13 171 101 51 6 10 . 33 27 101 31 80 Explosive 26 | . . . . . . . 1 . . . 9 . . . . 5 . . . . 2 4 . . 5 Electromagnetic 19 | . . . . . . . . . . . . . . . . 6 . 2 . . . 11 . . . Robot Hit Streak 29 | 4 12 10 13 4 15 13 7 12 13 10 11 7 . 5 15 22 12 9 10 . 8 10 12 9 29 Robot Miss Streak 14 | 2 5 4 6 2 3 5 5 5 4 2 4 3 . 4 7 6 3 . 2 . 2 7 6 5 14 Penetration Max 3 | . . . . . . . . . . . 1 . . . 1 1 1 . 1 . . . 2 3 3 Secondary Targets 19 | . 4 2 . . . 6 2 . . . 1 . . . 1 2 . . . . . . 1 . . Max Gunslinging Chain 1 | . 1 1 . . . 1 1 . . . 1 . . . 1 1 . . . . . . 1 . . Shots Hit Robots 1778 | 11 130 37 71 6 90 104 32 73 77 25 22 42 . 8 193 211 99 3 25 . 25 44 125 55 270 Core Hits 1263 | 6 58 16 27 3 47 39 23 37 15 10 18 18 . 7 97 134 45 6 9 . 17 21 41 38 531 Critical Kills 115 | . 1 . . . . . 1 . . . . 1 . . 3 6 . . 2 . 1 . 2 8 90 Critical Parts Destroyed 182 | . . 1 1 . . . . 2 . . . . . . . 1 2 . 2 . 2 2 2 13 154 Critical Strikes 351 | . 3 1 2 . . . 1 2 . . . 1 . . 6 8 4 . 5 . 3 4 7 22 282 Burn 6 | . 2 . 1 . . . . . . . . . . . 3 . . . . . . . . . . Meltdown 7 | . . . . . . . . . . . . . . . 2 3 . . . . 1 . . . 1 Destroy 321 | . 1 1 1 . . . 1 2 . . . 1 . . 1 4 2 . 5 . 2 2 4 21 273 Blast 14 | . . . . . . . . . . . . . . . . 1 2 . . . . . 3 . 8 Sever 3 | . . . . . . . . . . . . . . . . . . . . . . 2 . 1 . Melee Attacks 103 | . . . 6 . 2 1 . 5 . . . . . . . . 3 . 4 . 13 11 31 17 10 Impact 8 | . . . 6 . 2 . . . . . . . . . . . . . . . . . . . . Slashing 91 | . . . . . . 1 . 5 . . . . . . . . 3 . . . 13 11 31 17 10 Piercing . | . . . . . . . . . . . . . . . . . . . . . . . . . . Sneak Attacks 30 | . . . . . . . . 1 . . . . . . . . 2 . 4 . 3 2 10 6 2 Combat Hostiles . | . . . . . . . . . . . . . . . . . . . . . . . . . . Follow-up Attacks . | . . . . . . . . . . . . . . . . . . . . . . . . . . Damage Inflicted 55808 | 123 1679 405 1227 103 1690 1983 681 1484 1391 414 1552 1006 . 224 5381 7023 3743 248 643 . 1718 2649 5560 2406 12475 Guns 24716 | 123 1663 391 1175 103 1634 1983 542 1032 1391 414 455 568 . 159 3054 2975 1179 24 643 . 393 526 2869 787 633 Cannons 21115 | . . . . . . . . 341 . . . 401 . 56 2189 2945 2320 69 . . 450 609 1545 843 9347 Explosions 6280 | . . . . . . . 139 . . . 1097 . . . . 1043 . 155 . . 599 1081 . . 2166 Melee 3279 | . . . . . . . . 104 . . . . . . . . 244 . . . 276 433 1146 767 309 Ramming 418 | . 16 14 52 . 56 . . 7 . . . 37 . 9 138 60 . . . . . . . 9 20 Kinetic 30721 | 50 792 164 1125 103 1634 1983 542 1032 1391 414 455 568 . 53 2615 3738 2072 24 453 . 320 404 2468 791 7530 Thermal 15042 | 73 871 227 50 . . . . 341 . . . 401 . 162 2628 2097 1427 69 190 . 747 524 1946 839 2450 Explosive 5692 | . . . . . . . 139 . . . 1097 . . . . 834 . . . . 375 1081 . . 2166 Electromagnetic 656 | . . . . . . . . . . . . . . . . 294 . 155 . . . 207 . . . Impact . | . . . . . . . . . . . . . . . . . . . . . . . . . . Slashing 3279 | . . . . . . . . 104 . . . . . . . . 244 . . . 276 433 1146 767 309 Piercing . | . . . . . . . . . . . . . . . . . . . . . . . . . . Highest Corruption 38 | . . . . . . . . 2 35 35 35 35 35 38 6 11 3 3 11 . . . 13 4 23 Average Corruption 11 | . . . . . . . . 1 16 35 35 35 35 37 2 4 3 3 5 . . . 7 3 10 Corruption Purged 20 | . . . . . . . . . . . . . . . . 9 . . 11 . . . . . . Corruption Blocked . | . . . . . . . . . . . . . . . . . . . . . . . . . . Effects 442 | . . . . . . . . 5 20 24 53 63 12 28 28 36 25 13 5 . . . 43 5 82 Message Errors 96 | . . . . . . . . 2 7 6 10 16 4 6 4 5 4 6 2 . . . 12 . 12 Matter Fused 86 | . . . . . . . . . 1 2 13 13 5 7 6 6 4 3 . . . . 6 . 20 Heat Flow Errors 52 | . . . . . . . . . 1 1 6 4 1 4 5 8 4 1 1 . . . 6 1 9 Energy Discharges 53 | . . . . . . . . 2 . 3 8 6 2 3 4 7 2 . 1 . . . 5 2 8 Parts Rejected 7 | . . . . . . . . . . 1 . 1 . . . 1 1 1 . . . . . . 2 Parts Fused 5 | . . . . . . . . 1 . . . 1 . . 1 . 1 . . . . . 1 . . Data Loss (minor) 58 | . . . . . . . . . 3 4 5 11 . 1 6 6 4 1 . . . . 5 . 12 Data Loss (major) 25 | . . . . . . . . . 1 2 4 . . 2 2 2 1 . 1 . . . 3 . 7 Misfires 21 | . . . . . . . . . 1 . 4 3 . 3 . 1 1 1 . . . . 2 . 5 Alerts 5 | . . . . . . . . . . . 1 2 . . . . . . . . . . 1 1 . Misdirections 1 | . . . . . . . . . 1 . . . . . . . . . . . . . . . . Weapon Failures 33 | . . . . . . . . . 5 5 2 6 . 2 . . 3 . . . . . 2 1 7 Overload Shots 1 | . . . . . . . . . . . . . . . . . . 1 . . . . . . . Overflow Damage 2041 | . . . . . . . . 12 . . 125 . . . 15 161 133 . . . 194 64 598 210 529 Projectiles 820 | . . . . . . . . 12 . . . . . . 15 115 21 . . . 16 38 119 48 436 Explosions 339 | . . . . . . . . . . . 125 . . . . 26 . . . . 69 26 . . 93 Melee 882 | . . . . . . . . . . . . . . . . 20 112 . . . 109 . 479 162 . Knockbacks 142 | . . . . . . . . . . . . . . 1 2 15 2 . . . . . 12 8 102 Impact 3 | . . . . . . . . . . . . . . 1 1 1 . . . . . . . . . Kinetic 134 | . . . . . . . . . . . . . . . 1 14 2 . . . . . 10 8 99 Secondary 5 | . . . . . . . . . . . . . . . . . . . . . . . 2 . 3 Self-Inflicted Damage 342 | . . . . . . . 54 . . . 54 . . . . 64 . . . . 80 . . . 90 Shots 6 | . . . . . . . 1 . . . 2 . . . . 1 . . . . 1 . . . 1 Rammed 34 | . 7 4 6 . 3 . . 2 . . . 2 . . 7 1 . . . . . . . 1 1 Targets Rammed 39 | . 7 4 6 . 5 . . 2 . . . 3 . 1 8 1 . . . . . . . 1 1 Kicked . | . . . . . . . . . . . . . . . . . . . . . . . . . . Crushed 5 | . . . . . 2 . . . . . . 1 . 1 1 . . . . . . . . . . Highest Temperature 438 | 50 204 252 142 99 129 312 66 384 272 267 258 315 174 187 295 292 255 246 270 . 307 438 352 251 416 Average Temperature 72 | 26 49 80 35 56 38 100 21 103 84 60 66 135 109 67 63 42 48 69 56 . 81 98 123 105 100 Received Heat Transfer 3986 | . 411 102 90 12 135 270 63 192 . 153 174 146 . . 261 917 133 . . . 94 72 163 . 598 Effects 18 | . . 1 . . . 1 . . 3 . . 1 . . 1 . . . 1 . 1 . 5 . 4 Shutdowns 3 | . . . . . . . . . . . . . . . . . . . . . . . . . 3 Energy Bleed 8 | . . 1 . . . 1 . . . . . 1 . . 1 . . . 1 . . . 3 . . Interference 6 | . . . . . . . . . 3 . . . . . . . . . . . 1 . 2 . . Damage (minor) 1 | . . . . . . . . . . . . . . . . . . . . . . . . . 1 Siege Activations 16 | . . . . . . . . . . . . . . . . . . . . . . . . 3 13 Total Turns 753 | . . . . . . . . . . . . . . . . . . . . . . . . 49 704 Longest Duration 268 | . . . . . . . . . . . . . . . . . . . . . . . . 29 268 Martial Activations . | . . . . . . . . . . . . . . . . . . . . . . . . . . Shielding Activations . | . . . . . . . . . . . . . . . . . . . . . . . . . . Robots Disrupted . | . . . . . . . . . . . . . . . . . . . . . . . . . . Combat Hostiles . | . . . . . . . . . . . . . . . . . . . . . . . . . . Robots Corrupted . | . . . . . . . . . . . . . . . . . . . . . . . . . . Combat Hostiles . | . . . . . . . . . . . . . . . . . . . . . . . . . . Parts Fried 1 | . . . . . . . . . . . . . . . . . 1 . . . . . . . . Impact Corruptions 2 | . . . . . . . . . . . . . . . 1 1 . . . . . . . . . Robots Melted 9 | . . . . . . . . . . . . . . . 2 3 . . . . 1 . 1 1 1 Combat Hostiles 9 | . . . . . . . . . . . . . . . 2 3 . . . . 1 . 1 1 1 Parts Melted 50 | . 2 1 2 . . . . 1 . . . . . . 14 14 1 . . . 4 2 3 1 5 Heat Transferred 20989 | 222 2701 666 222 . . . . 481 . . . 555 . 274 4737 2970 1517 56 185 . 631 555 2146 814 2257 Parts Sabotaged 12 | . . . . . . . . . . . . . . . . 6 . . . . . . . . 6 Parts Stolen . | . . . . . . . . . . . . . . . . . . . . . . . . . . Parts Stripped . | . . . . . . . . . . . . . . . . . . . . . . . . . . Power Chain Reactions . | . . . . . . . . . . . . . . . . . . . . . . . . . . Alert | -11 -10 -10 -9 -9 -8 -8 -8 -7 -7 -7 -7 -7 -7 -6 -6 -5 -5 -5 -5 -5 -4 -3 -3 -2 -1 ------- Run | Yrd Mat Min Mat Min Mat Sto Gar Fac Was Fac Low Low Dat Pro Fac Fac Ext Cet Arc Hub Fac Res Tes Res Acc Maximum Alert Level 5 | . 1 . . . 1 2 2 2 . . . . . . 3 3 2 2 1 2 1 . 1 1 5 Low Security (%) 49 | 100 99 100 100 100 77 52 . . 100 100 . . . . 36 . 27 . 21 23 50 100 82 97 18 Level 1 23 | . . . . . 22 40 21 99 . . . . . . 22 18 49 93 78 18 49 . 17 2 2 Level 2 17 | . . . . . . 7 78 . . . . . . . 39 55 22 6 . 57 . . . . 4 Level 3 5 | . . . . . . . . . . . . . . . 2 26 . . . . . . . . 27 Level 4 1 | . . . . . . . . . . . . . . . . . . . . . . . . . 18 Level 5 . | . . . . . . . . . . . . . . . . . . . . . . . . . . High Security 2 | . . . . . . . . . . . . . . . . . . . . . . . . . 28 Max Security . | . . . . . . . . . . . . . . . . . . . . . . . . . . Sterilizations 1 | . . . . . . . . . . . . . . . . . . . . . . . . . 1 Peak Influence 3529 | 10 205 95 161 98 275 436 677 404 87 90 . . . . 743 831 644 418 314 459 385 189 270 210 3529 Initial 364 | . . 8 . 62 29 45 278 354 87 . . . . . . 364 280 340 131 57 214 153 62 96 104 Average 325 | 1 67 19 65 53 131 233 521 301 25 19 . . . . 302 555 304 352 237 314 206 100 128 76 1196 Influence Increases 15446 | 20 642 260 611 86 667 605 419 430 . 130 100 108 . 130 1367 1463 1158 401 251 462 588 333 778 436 4001 Destroy 0b10 Robot/C 8340 | . 380 200 240 60 300 360 260 280 . 100 80 80 . 100 780 820 540 160 80 180 200 120 360 240 2420 Destroy 0b10 Robot/NC 935 | 20 65 . 40 . 90 35 5 25 . . . 5 . . 65 125 55 10 15 . 20 35 70 40 215 Destroy Leader 1684 | . 88 30 104 10 116 96 10 80 . . 20 20 . 30 258 160 46 . . 20 42 36 54 64 400 Allied During Kill 873 | . . . . 8 9 . . . . . . 3 . . . . 409 170 95 179 . . . . . Successful Hack 359 | . 14 . 36 . 12 6 28 24 . . . . . . 79 62 2 . . . 21 26 35 14 . Select Force Hacks 290 | . 60 . 60 . 60 60 . . . . . . . . . . . . . 50 . . . . . Disable Machine 630 | . 15 . 15 . 45 15 . . . 15 . . . . 75 75 30 15 45 15 105 . 105 . 60 Anti-Garrison Action 100 | . . . . . . . 100 . . . . . . . . . . . . . . . . . . Destroy Structure 1725 | . 5 . 11 8 5 3 16 6 . . . . . . 65 206 46 46 16 18 200 116 94 78 786 Lose Combat Pursuer 510 | . 15 30 105 . 30 30 . 15 . 15 . . . . 45 15 30 . . . . . 60 . 120 Influence Decreases 11917 | 20 619 280 453 169 636 286 170 857 250 60 170 108 . 130 624 1633 1123 680 416 187 733 516 716 435 646 Entered New Map 2699 | . . 15 3 99 49 64 150 323 163 . 26 . . . . 379 293 268 198 107 225 141 49 77 70 Time Decay 7271 | 20 487 247 450 60 517 222 . 514 87 60 144 88 . 110 424 694 510 222 198 40 508 268 507 358 536 Lost Part 668 | . 20 18 . . 30 . 20 20 . . . . . 20 190 260 30 10 . . . . 10 . 40 Lost Ally 460 | . . . . 10 40 . . . . . . 20 . . 10 . 140 180 20 40 . . . . . Purge Threat 819 | . 112 . . . . . . . . . . . . . . 300 150 . . . . 107 150 . . Squads Dispatched 123 | . 4 . 2 . 8 6 . 5 . . . . . . 20 12 3 . . 5 4 4 8 3 39 Investigation 18 | . 3 . 2 . 3 2 . . . . . . . . . 1 1 . . 3 . 1 1 . 1 Extermination 30 | . . . . . . . . 3 . . . . . . 9 5 . . . . 3 . 4 2 4 Reinforcement 34 | . 1 . . . 2 2 . 2 . . . . . . 8 4 2 . . . 1 3 3 1 5 Assault 33 | . . . . . 2 . . . . . . . . . 1 2 . . . 2 . . . . 26 Garrison 8 | . . . . . 1 2 . . . . . . . . 2 . . . . . . . . . 3 Intercept . | . . . . . . . . . . . . . . . . . . . . . . . . . . Searches Triggered . | . . . . . . . . . . . . . . . . . . . . . . . . . . Unchained Authorized 3 | . . . . . . . . . . . . . . . . . . . . . . . 1 1 1 Data Miner Redirects 2 | . . . . . . . . . . . . . . . . 2 . . . . . . . . . Construction Impeded 11 | . . . . . . . . . . . . . . . 1 1 2 . . . . 2 1 1 3 Haulers Reinforced 3 | . . . . . . . . . . . . . . . 1 . . . . . . 1 1 . . Active Scanning Responses . | . . . . . . . . . . . . . . . . . . . . . . . . . . Cargo Convoy Interrupts 1 | . . . . . . . . . . . . . . . 1 . . . . . . . . . . Stealth | -11 -10 -10 -9 -9 -8 -8 -8 -7 -7 -7 -7 -7 -7 -6 -6 -5 -5 -5 -5 -5 -4 -3 -3 -2 -1 --------- Run | Yrd Mat Min Mat Min Mat Sto Gar Fac Was Fac Low Low Dat Pro Fac Fac Ext Cet Arc Hub Fac Res Tes Res Acc Distress Signals 38 | . . . 1 . 5 3 . . . . . . . . 6 . 3 2 . . . 8 1 1 8 Communications Jammed . | . . . . . . . . . . . . . . . . . . . . . . . . . . Distress Signals . | . . . . . . . . . . . . . . . . . . . . . . . . . . Times Spotted 621 | . 37 12 22 3 27 24 15 16 7 6 9 4 . 5 61 63 32 10 8 5 16 17 29 12 181 Peak Tracking Total 13 | . 4 4 4 3 6 5 4 3 3 3 5 3 . 3 5 9 6 5 1 4 4 5 5 3 13 Tactical Retreats 33 | . 1 2 7 . 2 1 . 1 1 1 . . . . 2 1 1 . . . 4 . 3 . 6 ECM-based Alert Blocks 9 | . . . . . . . . . . . . . . . . . . . . . 9 . . . . Traps | -11 -10 -10 -9 -9 -8 -8 -8 -7 -7 -7 -7 -7 -7 -6 -6 -5 -5 -5 -5 -5 -4 -3 -3 -2 -1 ------- Run | Yrd Mat Min Mat Min Mat Sto Gar Fac Was Fac Low Low Dat Pro Fac Fac Ext Cet Arc Hub Fac Res Tes Res Acc Traps Triggered 29 | . 1 . . . 2 2 . 3 . . . . . 1 4 1 4 . . . 2 . 3 . 6 Indirectly . | . . . . . . . . . . . . . . . . . . . . . . . . . . Trap Hack Attempts . | . . . . . . . . . . . . . . . . . . . . . . . . . . Triggered . | . . . . . . . . . . . . . . . . . . . . . . . . . . Disarmed 6 | . . . . . . . . . . . . . . . . . . . . . . 6 . . . Reprogrammed . | . . . . . . . . . . . . . . . . . . . . . . . . . . Reused . | . . . . . . . . . . . . . . . . . . . . . . . . . . Traps Extracted . | . . . . . . . . . . . . . . . . . . . . . . . . . . Installed . | . . . . . . . . . . . . . . . . . . . . . . . . . . Triggered . | . . . . . . . . . . . . . . . . . . . . . . . . . . Machines | -11 -10 -10 -9 -9 -8 -8 -8 -7 -7 -7 -7 -7 -7 -6 -6 -5 -5 -5 -5 -5 -4 -3 -3 -2 -1 ---------- Run | Yrd Mat Min Mat Min Mat Sto Gar Fac Was Fac Low Low Dat Pro Fac Fac Ext Cet Arc Hub Fac Res Tes Res Acc Machines Disabled 46 | . 1 . 1 . 3 1 1 . . 1 . . . . 5 5 4 1 3 1 7 . 8 . 4 Max in Single Turn 6 | . 1 . 1 . 1 1 1 . . 1 . . . . 3 1 1 1 1 . 6 . 1 . 1 Garrison Access 10 | . . . . . 1 . . . . . . . . . 2 2 . . . 1 1 1 . 1 1 Garrison Relay 1 | . . . . . . . 1 . . . . . . . . . . . . . . . . . . Network Hub 1 | . . . . . . . . . . . . . . . . . . . . 1 . . . . . Machines Repaired . | . . . . . . . . . . . . . . . . . . . . . . . . . . Machines Dismantled 2 | . . . . . . . . . . . . . . . . . . . . . . . . . 2 Machines Sabotaged 1 | . . . . . . . . . . . . . . . . . . . . 1 . . . . . Overloaded Fab Kills . | . . . . . . . . . . . . . . . . . . . . . . . . . . Hacking | -11 -10 -10 -9 -9 -8 -8 -8 -7 -7 -7 -7 -7 -7 -6 -6 -5 -5 -5 -5 -5 -4 -3 -3 -2 -1 --------- Run | Yrd Mat Min Mat Min Mat Sto Gar Fac Was Fac Low Low Dat Pro Fac Fac Ext Cet Arc Hub Fac Res Tes Res Acc Machines Accessed 109 | . 10 . 12 . 13 5 2 4 . 1 . . 3 . 13 11 8 . . 3 8 4 7 2 3 Terminals 68 | . 7 . 9 . 9 2 2 2 . 1 . . . . 7 7 8 . . 3 3 2 5 . 1 Fabricators 3 | . . . . . . . . . . . . . . . 1 1 . . . . . . 1 . . Repair Stations 8 | . 1 . . . 1 . . 1 . . . . . . 1 . . . . . 2 . 1 1 . Recycling Units 14 | . 2 . 2 . 2 2 . 1 . . . . . . 2 . . . . . 2 . . . 1 Scanalyzers 4 | . . . 1 . 1 . . . . . . . . . . 1 . . . . . 1 . . . Garrison Access 9 | . . . . . . 1 . . . . . . . . 2 2 . . . . 1 1 . 1 1 Total Hacks 316 | . 31 . 36 . 44 9 7 7 . 2 . . 21 . 29 26 21 . . 4 28 14 26 5 6 Successful 185 | . 21 . 22 . 19 5 2 3 . . . . 21 . 14 17 12 . . 3 23 10 9 3 1 Failed 131 | . 10 . 14 . 25 4 5 4 . 2 . . . . 15 9 9 . . 1 5 4 17 2 5 Catastrophic 18 | . . . 1 . 3 . 1 2 . . . . . . 4 2 . . . . . 1 4 . . Database Lockouts . | . . . . . . . . . . . . . . . . . . . . . . . . . . Manual 181 | . 24 . 25 . 31 7 . 5 . 2 . . . . 21 17 16 1 . 4 9 4 10 . 5 Terminals 236 | . 27 . 31 . 38 5 7 3 . 2 . . . . 22 22 21 . . 4 16 12 23 . 3 Fabricators 4 | . . . . . . . . . . . . . . . 2 1 . . . . . . 1 . . Repair Stations 17 | . 2 . . . 1 . . 1 . . . . . . 1 . . . . . 6 . 2 4 . Recycling Units 21 | . 2 . 2 . 3 2 . 3 . . . . . . 2 . . . . . 5 . . . 2 Scanalyzers 7 | . . . 3 . 2 . . . . . . . . . . 1 . . . . . 1 . . . Garrison Access 10 | . . . . . . 2 . . . . . . . . 2 2 . . . . 1 1 . 1 1 Terminal Hacks 87 | . 9 . 8 . 9 . 2 . . . . . 21 . 3 6 5 . . . 10 7 7 . . Record 3 | . . . . . . . . . . . . . 2 . . . . . . . . . 1 . . Part Schematic 13 | . . . . . 1 . . . . . . . 11 . . 1 . . . . . . . . . Robot Schematic 5 | . . . . . . . . . . . . . 5 . . . . . . . . . . . . Robot Analysis 5 | . 4 . . . 1 . . . . . . . . . . . . . . . . . . . . Prototype ID Bank 13 | . 1 . 3 . 2 . . . . . . . 3 . 1 . . . . . 2 . 1 . . Open Door 1 | . . . . . . . . . . . . . . . . . . . . . . . 1 . . Level Access Points 1 | . . . . . . . . . . . . . . . . . . . . . 1 . . . . Branch Access Points 2 | . . . . . . . . . . . . . . . . 1 . . . . . 1 . . . Emergency Access Points 1 | . . . . . . . 1 . . . . . . . . . . . . . . . . . . Terminal Index 6 | . 1 . . . 1 . . . . . . . . . 1 1 1 . . . 1 . . . . Recycling Unit Index 1 | . . . 1 . . . . . . . . . . . . . . . . . . . . . . Alert Level 3 | . 1 . 1 . 1 . . . . . . . . . . . . . . . . . . . . Unreport Threat 6 | . 1 . . . . . . . . . . . . . . 2 1 . . . . 1 1 . . Locate Traps 4 | . . . . . . . . . . . . . . . . . 2 . . . . 2 . . . Disarm Traps 1 | . . . . . . . . . . . . . . . . . . . . . . 1 . . . Maintenance Status 6 | . 1 . 1 . 1 . . . . . . . . . 1 . . . . . 1 1 . . . Recall Reinforcements 1 | . . . . . . . . . . . . . . . . . 1 . . . . . . . . Recall Assault 1 | . . . . . . . . . . . . . . . . . . . . . . . 1 . . Hauler Manifests 2 | . . . . . 1 . . . . . . . . . . . . . . . 1 . . . . Registered Components 3 | . . . 1 . . . . . . . . . . . . . . . . . 1 1 . . . Registered Prototypes 3 | . . . 1 . . . . . . . . . . . . 1 . . . . 1 . . . . Zone Layout 5 | . . . . . 1 . . . . . . . . . . . . . . . 2 . 2 . . Garrison Registry 1 | . . . . . . . 1 . . . . . . . . . . . . . . . . . . Fabricator Hacks 1 | . . . . . . . . . . . . . . . . 1 . . . . . . . . . Network Status 1 | . . . . . . . . . . . . . . . . 1 . . . . . . . . . Repair Station Hacks 7 | . 2 . . . . . . . . . . . . . . . . . . . 3 . . 2 . Scan Component 4 | . 1 . . . . . . . . . . . . . . . . . . . 2 . . 1 . Repair 3 | . 1 . . . . . . . . . . . . . . . . . . . 1 . . 1 . Recycling Unit Hacks 3 | . . . . . . . . 1 . . . . . . . . . . . . 2 . . . . Retrieve Components 3 | . . . . . . . . 1 . . . . . . . . . . . . 2 . . . . Scanalyzer 5 | . . . 3 . . . . . . . . . . . . 1 . . . . . 1 . . . Retrieve Study 5 | . . . 3 . . . . . . . . . . . . 1 . . . . . 1 . . . Garrison Access Hacks 9 | . . . . . . 1 . . . . . . . . 2 2 . . . . 1 1 . 1 1 Unlock Access 1 | . . . . . . 1 . . . . . . . . . . . . . . . . . . . Seal Access 8 | . . . . . . . . . . . . . . . 2 2 . . . . 1 1 . 1 1 Unauthorized Hacks 73 | . 10 . 11 . 10 4 . 2 . . . . . . 9 7 7 . . 3 7 1 2 . . Terminals 60 | . 8 . 9 . 7 2 . 1 . . . . . . 8 7 7 . . 3 5 1 2 . . Assimilate 3 | . . . 1 . . 1 . . . . . . . . 1 . . . . . . . . . . Botnet 16 | . 2 . 2 . 2 . . 1 . . . . . . 1 2 2 . . . 2 . 2 . . Operators 3 | . 1 . 1 . . . . . . . . . . . 1 . . . . . . . . . . Skim 35 | . 5 . 5 . 5 1 . . . . . . . . 5 5 5 . . . 3 1 . . . Sabotage 3 | . . . . . . . . . . . . . . . . . . . . 3 . . . . . Fabricators . | . . . . . . . . . . . . . . . . . . . . . . . . . . Repair Stations 2 | . . . . . 1 . . . . . . . . . . . . . . . 1 . . . . Mechanics 2 | . . . . . 1 . . . . . . . . . . . . . . . 1 . . . . Recycling Units 11 | . 2 . 2 . 2 2 . 1 . . . . . . 1 . . . . . 1 . . . . Recyclers 3 | . . . . . . . . 1 . . . . . . 1 . . . . . 1 . . . . Tunnel 8 | . 2 . 2 . 2 2 . . . . . . . . . . . . . . . . . . . Scanalyzers . | . . . . . . . . . . . . . . . . . . . . . . . . . . Garrison Access . | . . . . . . . . . . . . . . . . . . . . . . . . . . Data Cores Recovered 4 | . . . . . . . . . . . . . . . . 3 . . . . . . 1 . . Used 1 | . . . . . . . . . . . . . . . . 1 . . . . . . . . . Hacking Detections 80 | . 6 . 8 . 11 2 2 4 . 1 . . . . 10 9 7 1 . . 7 2 7 1 2 Full Trace Events 1 | . . . . . . . 1 . . . . . . . . . . . . . . . . . . Feedback Events . | . . . . . . . . . . . . . . . . . . . . . . . . . . Feedback Blocked . | . . . . . . . . . . . . . . . . . . . . . . . . . . Robot Schematics Acquired 5 | . . . . . . . . . . . . . 5 . . . . . . . . . . . . Robots Built . | . . . . . . . . . . . . . . . . . . . . . . . . . . Authchips . | . . . . . . . . . . . . . . . . . . . . . . . . . . Time . | . . . . . . . . . . . . . . . . . . . . . . . . . . Total Robot Build Rating . | . . . . . . . . . . . . . . . . . . . . . . . . . . Part Schematics Acquired 13 | . . . . . 1 . . . . . . . 11 . . 1 . . . . . . . . . Parts Built . | . . . . . . . . . . . . . . . . . . . . . . . . . . Authchips . | . . . . . . . . . . . . . . . . . . . . . . . . . . Time . | . . . . . . . . . . . . . . . . . . . . . . . . . . Total Part Build Rating . | . . . . . . . . . . . . . . . . . . . . . . . . . . Part Studies Acquired 4 | . . . 2 . . . . . . . . . . . . 1 . . . . . 1 . . . Parts Repaired 3 | . 1 . . . . . . . . . . . . . . . . . . . 1 . . 1 . Time 104 | . 26 . . . . . . . . . . . . . . . . . . . 44 . . 34 . Parts Recycled . | . . . . . . . . . . . . . . . . . . . . . . . . . . Recycled Matter . | . . . . . . . . . . . . . . . . . . . . . . . . . . Retrieved Matter . | . . . . . . . . . . . . . . . . . . . . . . . . . . Retrieved Components 14 | . . . . . . . . 9 . . . . . . . . . . . . 5 . . . . Parts Scanalyzed . | . . . . . . . . . . . . . . . . . . . . . . . . . . Part Schematics Acquired . | . . . . . . . . . . . . . . . . . . . . . . . . . . Parts Damaged . | . . . . . . . . . . . . . . . . . . . . . . . . . . Bothacking | -11 -10 -10 -9 -9 -8 -8 -8 -7 -7 -7 -7 -7 -7 -6 -6 -5 -5 -5 -5 -5 -4 -3 -3 -2 -1 ------------ Run | Yrd Mat Min Mat Min Mat Sto Gar Fac Was Fac Low Low Dat Pro Fac Fac Ext Cet Arc Hub Fac Res Tes Res Acc Used RIF Installer 1 | . . . . . . . 1 . . . . . . . . . . . . . . . . . . Robots Hacked 14 | . . . . . . . . 2 6 1 . . . . 1 . . . 4 . . . . . . Non-combat 5 | . . . . . . . . 2 . 1 . . . . 1 . . . 1 . . . . . . Combat 9 | . . . . . . . . . 6 . . . . . . . . . 3 . . . . . . Robot Hacks Applied 15 | . . . . . . . . 2 7 1 . . . . 1 . . . 4 . . . . . . parse_system 5 | . . . . . . . . . 1 . . . . . . . . . 4 . . . . . . no_distress 2 | . . . . . . . . 1 . . . . . . 1 . . . . . . . . . . find_chute 1 | . . . . . . . . 1 . . . . . . . . . . . . . . . . . ignore_targets 6 | . . . . . . . . . 6 . . . . . . . . . . . . . . . . formatsys_low 1 | . . . . . . . . . . 1 . . . . . . . . . . . . . . . Relay Couplers Released 20 | . . . . . 2 . 4 . . . . . . . 1 5 . . . 2 . 1 . 1 4 Machine Destruction 13 | . . . . . 2 . 4 . . . . . . . 1 2 . . . 2 . 1 . 1 . Programmers 7 | . . . . . . . . . . . . . . . . 3 . . . . . . . . 4 Attached 1 | . . . . . . . . . 1 . . . . . . . . . . . . . . . . Fabnet Peak Effective % . | . . . . . . . . . . . . . . . . . . . . . . . . . . Robots Rewired 22 | . . . . . . . . . . . 2 . . . . . 20 . . . . . . . . Allies Hacked . | . . . . . . . . . . . . . . . . . . . . . . . . . . Hacks Repelled . | . . . . . . . . . . . . . . . . . . . . . . . . . . Allies | -11 -10 -10 -9 -9 -8 -8 -8 -7 -7 -7 -7 -7 -7 -6 -6 -5 -5 -5 -5 -5 -4 -3 -3 -2 -1 -------- Run | Yrd Mat Min Mat Min Mat Sto Gar Fac Was Fac Low Low Dat Pro Fac Fac Ext Cet Arc Hub Fac Res Tes Res Acc Total Allies 39 | . . . 1 2 . . . . . 1 2 . . . 1 . 27 5 . . . . . . . Largest Group 20 | . . . 1 3 2 . . . . 1 3 3 . . 1 . 20 19 10 7 . . . . . Highest-Rated Group 1019 | . . . 10 52 42 . . . . 14 59 59 . . 26 . 673 1019 687 405 . . . . . Highest-Rated Ally 159 | . . . 10 31 31 . . . . 14 25 25 . . 26 . 159 159 152 96 . . . . . Total Orders 2 | . . . . . . . . . . . 1 1 . . . . . . . . . . . . . AID 2 | . . . . . . . . . . . 1 1 . . . . . . . . . . . . . Ally Attacks 315 | . . . . 4 19 . . . . . . 5 . . . . 138 90 13 46 . . . . . Total Damage 7755 | . . . . 198 274 . . . . . . 84 . . . . 2765 2300 422 1712 . . . . . Kills 46 | . . . . 1 3 . . . . . . . . . . . 16 12 3 11 . . . . . Allies Corrupted . | . . . . . . . . . . . . . . . . . . . . . . . . . . Allies Melted . | . . . . . . . . . . . . . . . . . . . . . . . . . . Intel | -11 -10 -10 -9 -9 -8 -8 -8 -7 -7 -7 -7 -7 -7 -6 -6 -5 -5 -5 -5 -5 -4 -3 -3 -2 -1 ------- Run | Yrd Mat Min Mat Min Mat Sto Gar Fac Was Fac Low Low Dat Pro Fac Fac Ext Cet Arc Hub Fac Res Tes Res Acc Active Infowar (turns) 18137 | 7 784 37 260 . 637 204 . 1123 18 257 762 707 182 469 3663 2444 972 . 1 7 1656 735 1265 805 1142 Sensors 16863 | . . . . . 613 204 . 1123 18 257 762 707 182 469 3663 2335 972 . 1 7 1619 733 1256 803 1139 IFF 4384 | . . . . . . . . . . . . . . . . . . . . . 1480 709 1175 696 324 Terrain 341 | . . . . . . . . . . . . . . . . 341 . . . . . . . . . Seismic 1030 | 7 784 37 178 . 24 . . . . . . . . . . . . . . . . . . . . T.N.C. 82 | . . . 82 . . . . . . . . . . . . . . . . . . . . . . ECM 676 | . . . . . . . . . . . . . . . . . . . . . 495 180 . 1 . Robot Analysis Total 5 | . 4 . . . 1 . . . . . . . . . . . . . . . . . . . . Derelict Logs Recovered 3 | . . 2 . . . . . . . . . 1 . . . . . . . . . . . . . Drone Launches . | . . . . . . . . . . . . . . . . . . . . . . . . . . Drone Recoveries . | . . . . . . . . . . . . . . . . . . . . . . . . . . Exploration | -11 -10 -10 -9 -9 -8 -8 -8 -7 -7 -7 -7 -7 -7 -6 -6 -5 -5 -5 -5 -5 -4 -3 -3 -2 -1 ------------- Run | Yrd Mat Min Mat Min Mat Sto Gar Fac Was Fac Low Low Dat Pro Fac Fac Ext Cet Arc Hub Fac Res Tes Res Acc Turns Passed 29773 | 89 1740 1142 1679 120 1507 464 963 1409 327 385 896 1069 182 496 4725 2879 1398 465 414 95 1704 773 1525 903 2424 Spaces Moved 14018 | 33 576 419 877 68 755 143 550 703 95 159 376 458 89 218 1960 1659 794 219 114 72 1158 555 932 387 649 Core 2 | . . . . . . . . . . . . . . . . 2 . . . . . . . . . Treads 8416 | 33 576 419 877 68 755 143 550 703 95 159 376 458 89 218 1915 4 . . . . . . . 329 649 Legs . | . . . . . . . . . . . . . . . . . . . . . . . . . . Wheels 5600 | . . . . . . . . . . . . . . . 45 1653 794 219 114 72 1158 555 932 58 . Hover . | . . . . . . . . . . . . . . . . . . . . . . . . . . Flight . | . . . . . . . . . . . . . . . . . . . . . . . . . . Fastest Speed 101 | 160 160 240 160 160 160 160 160 156 156 206 206 200 200 200 130 106 106 106 106 106 106 102 101 101 150 Average Speed 158 | 160 229 240 160 160 161 161 160 156 193 206 206 203 200 200 200 123 110 106 106 119 117 105 109 147 184 Slowest Speed 1600 | 160 240 240 240 160 162 162 160 160 206 206 206 206 200 200 400 1600 125 106 125 121 150 122 128 247 239 Overloaded Moves . | . . . . . . . . . . . . . . . . . . . . . . . . . . Propulsion Burnouts . | . . . . . . . . . . . . . . . . . . . . . . . . . . Robots Hopped . | . . . . . . . . . . . . . . . . . . . . . . . . . . Potential Cave-ins . | . . . . . . . . . . . . . . . . . . . . . . . . . . Cave-ins Triggered . | . . . . . . . . . . . . . . . . . . . . . . . . . . Exploration Rate (%) 47 | 4 80 89 69 27 80 41 51 18 71 4 63 58 68 41 51 49 84 72 70 11 24 22 70 7 19 Regions Visited 25 Branch Regions 12 Pre-discovered Areas 15 | . 2 . 4 . 4 2 . . . . . . 1 . 1 1 . . . . . . . . . Known Exits Taken 21 | . 1 1 1 1 1 1 . . . 1 1 1 1 1 1 1 1 1 1 1 1 1 1 1 . Unknown Exits Taken 1 | 1 . . . . . . . . . . . . . . . . . . . . . . . . . Scrap Searched 8 | . . 2 . . . . . . . . . 3 . 3 . . . . . . . . . . . Spaces Dug 105 | . 2 . 5 . . 1 . 3 . . . . . . 36 10 . . . . 17 4 13 4 10 Terrain Destroyed 885 | . 3 . 6 . . 1 14 3 . 1 45 1 . . 74 132 27 . 9 . 105 75 54 22 313 Melee 41 | . . . 3 . . 1 . 3 . . . . . . . . . . . . 9 4 11 4 6 Projectile 296 | . 3 . 3 . . . . . . 1 1 1 . . 57 63 27 . 9 . 25 6 42 8 50 AOE 428 | . . . . . . . 14 . . . 44 . . . 17 68 . . . . 71 65 . . 149 Terrain Rammed . | . . . . . . . . . . . . . . . . . . . . . . . . . . Walls Destroyed . | . . . . . . . . . . . . . . . . . . . . . . . . . . Machines Disabled . | . . . . . . . . . . . . . . . . . . . . . . . . . . Actions | -11 -10 -10 -9 -9 -8 -8 -8 -7 -7 -7 -7 -7 -7 -6 -6 -5 -5 -5 -5 -5 -4 -3 -3 -2 -1 --------- Run | Yrd Mat Min Mat Min Mat Sto Gar Fac Was Fac Low Low Dat Pro Fac Fac Ext Cet Arc Hub Fac Res Tes Res Acc Total 19147 | 53 772 496 1065 73 960 284 593 928 162 194 460 537 94 262 2446 2217 1190 453 379 82 1422 671 1234 631 1489 Wait 2302 | 2 54 30 56 2 81 59 8 128 8 8 33 30 . 25 144 229 208 189 227 3 127 23 61 131 436 Move 13994 | 32 575 418 876 67 754 143 549 703 94 158 375 457 88 217 1959 1658 793 218 113 71 1157 554 931 386 648 Hop . | . . . . . . . . . . . . . . . . . . . . . . . . . . Pick Up 247 | 1 15 5 20 . 16 3 3 9 3 3 3 4 . 4 38 34 5 10 2 3 15 7 19 13 12 Fast Attach 148 | 1 1 1 2 . 2 2 . 2 1 1 . 1 2 . 11 35 7 7 9 . 15 8 23 5 12 Attach 114 | 2 2 3 6 . 7 1 2 4 . 2 2 5 1 5 19 17 1 1 . 1 7 2 5 6 13 Detach 47 | 2 . 1 3 . 1 . . 1 . 1 . 1 1 1 1 6 . 2 1 1 3 2 9 4 6 Swap 480 | . 9 2 19 . 19 9 2 23 8 3 12 8 . 3 66 46 22 5 5 . 31 18 44 23 103 Drop 291 | 3 4 2 24 . 20 9 1 9 2 3 1 . 2 . 30 37 12 14 6 3 21 15 39 18 16 Fire 1253 | 10 105 30 47 4 53 57 28 42 46 15 22 28 . 6 166 154 54 7 12 . 33 31 72 27 204 Melee 103 | . . . 6 . 2 1 . 5 . . . . . . . . 3 . 4 . 13 11 31 17 10 Ram 1 | . . . . . . . . . . . . . . . . 1 . . . . . . . . . Kick . | . . . . . . . . . . . . . . . . . . . . . . . . . . Crush 38 | . 7 4 6 . 5 . . 2 . . . 3 . 1 8 . . . . . . . . 1 1 Escape Stasis 34 | . . . . . . . . . . . . . . . 4 . 24 . . . . . . . 6 Rewire 73 | . . . . . . . . . . . 12 . . . . . 61 . . . . . . . . Trap . | . . . . . . . . . . . . . . . . . . . . . . . . . . Miscellaneous 22 | . . . . . . . . . . . . . . . . . . . . . . . . . 22 Route ------- -11/Scrapyard -10/Materials (discovered 6 exits: *Mat x3 / *Min x2 / Sub) -10/Mines -9/Materials (discovered 5 exits: Mat x3 / *Min x2) -9/Mines -8/Materials (discovered 4 exits: *Fac x2 / *Sto x2) -8/Storage (discovered 3 exits: Fac / Rec / Gar) -8/Garrison (discovered 3 exits: *Fac x3) -7/Factory (discovered 2 exits: *Fac / *Low) -7/Waste -7/Factory -7/Lower Caves -7/Lower Caves -7/Data Miner -6/Proximity Caves -6/Factory (discovered 5 exits: *Fac x3 / Low x2) -5/Factory (discovered 5 exits: *Fac / *Upp x2 / *Ext x2) -5/Extension (discovered 3 exits: *Fac x2 / *Cet) -5/Cetus (discovered 2 exits: *Fac / *Arc) -5/Archives (discovered 2 exits: *Fac / *Hub) -5/Hub_04(d) -4/Factory (discovered 5 exits: *Res x4 / Upp) -3/Research (discovered 3 exits: Arm / *Tes x2) -3/Testing -2/Research -1/Access To Epsilon Eridani History --------- Turn | Location | Event 14 | -11/Scrapyard | Discovered new exit (range 3) 90 | -11/Scrapyard | Entered Materials 327 | -10/Materials | Build established: Mutant 537 | -10/Materials | Repaired Ion Engine 553 | -10/Materials | Discovered new exit (range 12) 771 | -10/Materials | Discovered new exit (range 7) 883 | -10/Materials | Core integrity fell below 50% 1059 | -10/Materials | Discovered new exit (range 16) 1457 | -10/Materials | Identified exit to Subcaves 1621 | -10/Materials | Identified exit to Materials 1621 | -10/Materials | Identified exit to Mines 1657 | -10/Materials | Learned Storage stockpile data 1765 | -10/Materials | Learned location of 1 exit from Materials 1830 | -10/Materials | Entered Mines 2008 | -10/Mines | Core integrity fell below 20% 2082 | -10/Mines | Learned Materials terminal intel 2423 | -10/Mines | Learned 8 Materials zone layouts 2953 | -10/Mines | Discovered exit to Materials (range 10) 2972 | -10/Mines | Entered Materials 2972 | -9/Materials | Evolved 2 slots: Propulsion x1, Weapon x1 2973 | -9/Materials | Identified exit to Mines 2974 | -9/Materials | Identified exit to Materials 2975 | -9/Materials | Loaded intel: 12 terminal locations 3934 | -9/Materials | Build established: Tank 4028 | -9/Materials | Learned Storage security intel 4051 | -9/Materials | Learned location of 1 exit from Storage 4063 | -9/Materials | Loaded intel: 2 repair station locations 4074 | -9/Materials | Learned location of 1 exit from Storage 4097 | -9/Materials | Learned location of Zion (-6) 4651 | -9/Materials | Entered Mines 4651 | -9/Mines | Accompanied by 1 ally 4716 | -9/Mines | Met a Derelict bent on vengeance 4758 | -9/Mines | Discovered exit to Materials (range 9) 4771 | -9/Mines | Entered Materials 4771 | -8/Materials | Accompanied by 2 allies 4771 | -8/Materials | Evolved 2 slots: Propulsion x1, Utility x1 4776 | -8/Materials | Led the pair of lost Derelicts to an unsafe place 5182 | -8/Materials | Garrison activated, responded to threat 5426 | -8/Materials | Discovered new exit (range 14) 5475 | -8/Materials | Identified exit to Factory 5574 | -8/Materials | Met 7R-MNS 5687 | -8/Materials | Learned 2 Storage zone layouts 5688 | -8/Materials | Discovered new exit (range 11) 5758 | -8/Materials | Learned 4 Recycling zone layouts 5817 | -8/Materials | Learned Storage garrison access intel 5868 | -8/Materials | Learned location of Lower Caves (-7) 5910 | -8/Materials | Learned location of Storage (-8) 5913 | -8/Materials | Build established: Scavenger-Gunner 5942 | -8/Materials | Learned Factory emergency access door positions 5962 | -8/Materials | Learned location of 1 exit from Recycling 5990 | -8/Materials | Learned location of 1 exit from Lower Caves 6027 | -8/Materials | Learned Storage stockpile data 6036 | -8/Materials | Discovered exit to Factory (range 16) 6073 | -8/Materials | Learned 2 Storage zone layouts 6127 | -8/Materials | Identified exit to Storage 6278 | -8/Materials | Entered Storage 6279 | -8/Storage | Identified exit to Recycling 6284 | -8/Storage | Loaded intel: 1 garrison access location 6598 | -8/Storage | Garrison activated, responded to threat 6699 | -8/Storage | Garrison activated, responded to threat 6742 | -8/Storage | Identified exit to Garrison 6742 | -8/Storage | Entered Garrison 6758 | -8/Garrison | Triggered checkpoint 6864 | -8/Garrison | Triggered checkpoint 6940 | -8/Garrison | Triggered checkpoint 6969 | -8/Garrison | Build established: Tank 7004 | -8/Garrison | Triggered checkpoint 7095 | -8/Garrison | Discovered exit to Factory (range 9) 7231 | -8/Garrison | Triggered checkpoint 7305 | -8/Garrison | Discovered exit to Factory (range 41) 7305 | -8/Garrison | Discovered exit to Factory (range 12) 7305 | -8/Garrison | Discovered exit to Factory (range 43) 7460 | -8/Garrison | Installed Relay Interface Framework 7556 | -8/Garrison | Garrison Relay disabled 7705 | -8/Garrison | Entered Factory 7705 | -7/Factory | Evolved 2 slots: Utility x2 7881 | -7/Factory | Discovered new exit (range 5) 7887 | -7/Factory | Identified exit to Factory 8073 | -7/Factory | Build established: Skirmisher 8314 | -7/Factory | Discovered new exit (range 12) 8354 | -7/Factory | Identified exit to Lower Caves 9114 | -7/Factory | Manually triggered Chute Trap 9114 | -7/Factory | Sucked down chute 9114 | -7/Factory | Entered Waste 9127 | -7/Waste | Spotted C-40 Crusher 9129 | -7/Waste | EMP discharged 9165 | -7/Waste | Destroyed C-40 Crusher 9168 | -7/Waste | Spotted C-40 Crusher 9177 | -7/Waste | Spotted C-40 Crusher 9198 | -7/Waste | Found Damper Plating 9212 | -7/Waste | Spotted C-40 Crusher 9217 | -7/Waste | Spotted C-40 Crusher 9229 | -7/Waste | EMP discharged 9229 | -7/Waste | System corruption reached 10% 9277 | -7/Waste | Destroyed C-40 Crusher 9329 | -7/Waste | EMP discharged 9402 | -7/Waste | Discovered new exit (range 15) 9429 | -7/Waste | EMP discharged 9429 | -7/Waste | System corruption reached 30% 9439 | -7/Waste | Identified exit to Factory 9441 | -7/Waste | Entered Factory 9793 | -7/Factory | Discovered exit to Lower Caves (range 13) 9826 | -7/Factory | Entered Lower Caves 9826 | -7/Lower Caves | Accompanied by 1 ally 9827 | -7/Lower Caves | Encountered a Warlord checkpoint 9827 | -7/Lower Caves | Identified exit to Lower Caves 10318 | -7/Lower Caves | Build established: Scavenger-Skirmisher 10441 | -7/Lower Caves | Attacked by a faux Warlord 10722 | -7/Lower Caves | Entered another Lower Caves area 10722 | -7/Lower Caves | Accompanied by 3 allies 11279 | -7/Lower Caves | Spotted B-75 Beast 11446 | -7/Lower Caves | Destroyed B-75 Beast 11471 | -7/Lower Caves | Lost 4 parts (1n2u1w) 11643 | -7/Lower Caves | Encountered a Warlord checkpoint 11781 | -7/Lower Caves | Discovered new exit (range 5) 11789 | -7/Lower Caves | Identified exit to Data Miner 11791 | -7/Lower Caves | Entered Data Miner 11793 | -7/Data Miner | Discovered new exit (range 6) 11831 | -7/Data Miner | Met Data Miner 11867 | -7/Data Miner | Learned location of Section 7 (-2) 11867 | -7/Data Miner | Acquired the access code to Warlord's prototype stash 11895 | -7/Data Miner | Received God Mode back door access code from Data Miner 11970 | -7/Data Miner | Identified exit to Proximity Caves 11973 | -7/Data Miner | Entered Proximity Caves 12455 | -6/Proximity Caves | Discovered exit to Factory (range 8) 12469 | -6/Proximity Caves | Entered Factory 12469 | -6/Factory | Evolved 2 slots: Power x1, Utility x1 12470 | -6/Factory | Identified exit to Lower Caves 12624 | -6/Factory | Watched by a mysterious "MATRIX" hacker 12974 | -6/Factory | Build established: Scavenger-Tank 13429 | -6/Factory | Build established: Scavenger-Skirmisher 14027 | -6/Factory | Cargo convoy interrupted 14031 | -6/Factory | Garrison activated, responded to threat 14095 | -6/Factory | Discovered new exit (range 12) 15425 | -6/Factory | Lost 7 parts (1p3n1u2w) 15446 | -6/Factory | Spotted B-75 Beast 15969 | -6/Factory | First assault squad dispatched 16264 | -6/Factory | Learned Hub_04(d) trap positions 16326 | -6/Factory | Learned Extension emergency access door positions 16377 | -6/Factory | Learned location of 1 exit from Upper Caves 16420 | -6/Factory | Learned location of 1 exit from Upper Caves 16454 | -6/Factory | Learned location of Lower Caves (-6) 16476 | -6/Factory | Learned location of 2 exits from Proximity Caves 16508 | -6/Factory | Identified exit to Factory 16549 | -6/Factory | Learned location of 2 exits from Lower Caves 16602 | -6/Factory | Loaded intel: 52 interactive machine locations 17114 | -6/Factory | Lost 7 parts (1p3n2u1w) 17194 | -6/Factory | Entered another Factory area 17194 | -5/Factory | Evolved 2 slots: Utility x2 17557 | -5/Factory | Discovered new exit (range 16) 17794 | -5/Factory | First assault squad dispatched 18802 | -5/Factory | System corruption reached 10% 18803 | -5/Factory | Incoming assault squad redirected 18828 | -5/Factory | Lost 12 parts (2p4n3u3w) 18829 | -5/Factory | Destroyed 7 combat bots 18867 | -5/Factory | Core integrity fell below 50% 19177 | -5/Factory | Incoming assault squad redirected 19214 | -5/Factory | Lost 6 parts (2n1u3w) 19546 | -5/Factory | Discovered new exit (range 8) 19551 | -5/Factory | Identified exit to Factory 19563 | -5/Factory | Identified exit to Extension 19596 | -5/Factory | Loaded intel: 28 terminal locations 19618 | -5/Factory | Learned location of 1 exit from Upper Caves 19630 | -5/Factory | Learned location of 1 exit from Quarantine 19631 | -5/Factory | Learned 4 Upper Caves zone layouts 19632 | -5/Factory | Learned Extension stockpile data 19633 | -5/Factory | Learned 4 Research zone layouts 19866 | -5/Factory | Identified exit to Upper Caves 20073 | -5/Factory | Entered Extension 20535 | -5/Extension | Learned location of 1 exit from Quarantine 20563 | -5/Extension | Rescued a captive Derelict 20563 | -5/Extension | Rescued a captive Derelict 20610 | -5/Extension | Learned Factory scanalyzer intel 20704 | -5/Extension | Rescued a captive Derelict 20726 | -5/Extension | Learned Armory emergency access door positions 20770 | -5/Extension | Learned location of 2 exits from Factory 20805 | -5/Extension | Learned Testing emergency access door positions 20831 | -5/Extension | Learned 4 Extension zone layouts 20869 | -5/Extension | Identified exit to Cetus 20978 | -5/Extension | Learned 4 Factory zone layouts 21050 | -5/Extension | Learned 4 Factory zone layouts 21096 | -5/Extension | Spotted B-75 Beast 21110 | -5/Extension | Allies destroyed B-75 Beast 21116 | -5/Extension | Spotted B-75 Beast 21128 | -5/Extension | Allies destroyed B-75 Beast 21194 | -5/Extension | Lost 6 allies 21195 | -5/Extension | Rescued A7 21250 | -5/Extension | Rescued a captive Derelict 21252 | -5/Extension | Rescued a captive Derelict 21382 | -5/Extension | Rescued a captive Derelict 21471 | -5/Extension | Entered Cetus 21471 | -5/Cetus | Accompanied by 18 allies (A7) 21476 | -5/Cetus | Acquired a Cetus Manufacturing Module code from A7 21496 | -5/Cetus | Spotted Cetus Guard 21496 | -5/Cetus | Spotted Cetus Guard 21501 | -5/Cetus | Spotted Cetus Guard 21513 | -5/Cetus | Allies destroyed Cetus Guard 21514 | -5/Cetus | Spotted Cetus Guard 21520 | -5/Cetus | Allies destroyed Cetus Guard 21523 | -5/Cetus | Allies destroyed Cetus Guard 21523 | -5/Cetus | Allies destroyed Cetus Guard 21551 | -5/Cetus | Lost 4 allies 21595 | -5/Cetus | Started Cetus Manufacturing Module 21617 | -5/Cetus | Escorted A7 to Cetus Mainframe 21620 | -5/Cetus | Manufactured an Enhanced Grunt 21645 | -5/Cetus | Manufactured an Enhanced Grunt 21670 | -5/Cetus | Manufactured an Enhanced Grunt 21695 | -5/Cetus | Manufactured an Enhanced Grunt 21715 | -5/Cetus | Discovered new exit (range 16) 21720 | -5/Cetus | Manufactured an Enhanced Grunt 21782 | -5/Cetus | Spotted Cetus Guard 21782 | -5/Cetus | Spotted Cetus Guard 21793 | -5/Cetus | Spotted Cetus Guard 21797 | -5/Cetus | Allies destroyed Cetus Guard 21797 | -5/Cetus | Spotted Cetus Guard 21805 | -5/Cetus | Allies destroyed Cetus Guard 21808 | -5/Cetus | Allies destroyed Cetus Guard 21808 | -5/Cetus | Allies destroyed Cetus Guard 21824 | -5/Cetus | Discovered exit to Factory (range 15) 21830 | -5/Cetus | Met Revision 17 21849 | -5/Cetus | Lost 7 allies 21933 | -5/Cetus | Identified exit to Archives 21936 | -5/Cetus | Entered Archives 21936 | -5/Archives | Accompanied by 10 allies (A7) 21941 | -5/Archives | Received a hacking code to weaken MAIN.C 22113 | -5/Archives | Discovered new exit (range 16) 22154 | -5/Archives | Discovered exit to Factory (range 16) 22233 | -5/Archives | Build established: Scavenger-Tank 22332 | -5/Archives | Identified exit to Hub_04(d) 22350 | -5/Archives | Entered Hub_04(d) 22350 | -5/Hub_04(d) | Accompanied by 7 allies 22350 | -5/Hub_04(d) | Discovered exit to Factory (range 11) 22351 | -5/Hub_04(d) | Loaded intel: 14 trap records 22367 | -5/Hub_04(d) | Network Hub disabled 22416 | -5/Hub_04(d) | Lost 3 allies 22445 | -5/Hub_04(d) | Entered Factory 22445 | -4/Factory | Evolved 2 slots: Utility x1, Weapon x1 22446 | -4/Factory | Identified exit to Research 22447 | -4/Factory | Identified exit to Upper Caves 22449 | -4/Factory | Loaded intel: 4 scanalyzer locations 22774 | -4/Factory | Build established: Scavenger-Assassin 23481 | -4/Factory | Repaired Arm. Huge Wheel+ 23945 | -4/Factory | Spotted B-86 Titan 24149 | -4/Factory | Entered Research 24149 | -3/Research | Evolved 2 slots: Propulsion x2 24170 | -3/Research | Build established: Hacker-Skirmisher 24349 | -3/Research | Revision forces began assault on 0b10 24363 | -3/Research | Identified exit to Armory 24363 | -3/Research | Identified exit to Testing 24393 | -3/Research | Met up with Revision 17++ 24534 | -3/Research | Lost 4 allies 24676 | -3/Research | Build established: Hacker-Assassin 24790 | -3/Research | Declared boring by mysterious "MATRIX" hacker 24849 | -3/Research | Research terminal network offline 24911 | -3/Research | Found Prototype Processor 24911 | -3/Research | Identified Exp. Melee Analysis Suite 24922 | -3/Research | Entered Testing 25213 | -3/Testing | Found Prototype Launcher 25213 | -3/Testing | Identified Z-bomb Delivery System 25247 | -3/Testing | Found Prototype Hackware 25247 | -3/Testing | Identified Ghost Barrier 25306 | -3/Testing | Found Prototype Device 25306 | -3/Testing | Identified Exp. Shield Generator 25341 | -3/Testing | Discovered new exit (range 11) 25415 | -3/Testing | Found Prototype Protection 25415 | -3/Testing | Identified SHELL Armor 25521 | -3/Testing | Identified exit to Research 25682 | -3/Testing | Found Prototype Launcher 25682 | -3/Testing | Identified Adv. Micro-nuke Launcher 25977 | -3/Testing | Found Prototype Processor 25977 | -3/Testing | Identified Spectral Analyzer 25996 | -3/Testing | System corruption reached 10% 26114 | -3/Testing | Build established: Scavenger-Assassin 26142 | -3/Testing | Found Prototype Energy Cannon 26142 | -3/Testing | Identified Hpw. Disruptor Cannon 26272 | -3/Testing | Found Prototype Ballistic Cannon 26272 | -3/Testing | Identified Perforator 26361 | -3/Testing | Unchained authorized (CL-0N3) 26447 | -3/Testing | Entered Research 26447 | -2/Research | Evolved 2 slots: Utility x2 26621 | -2/Research | Discovered new exit (range 8) 26632 | -2/Research | Identified exit to Access 26893 | -2/Research | Repaired Nova Cannon 27138 | -2/Research | Unchained authorized (CL-0N3) 27350 | -2/Research | Entered Access 27350 | -1/Access | Evolved 2 slots: Power x1, Utility x1 27471 | -1/Access | Build established: Scavenger-Tank 27867 | -1/Access | Destroyed 9 combat bots 27872 | -1/Access | Garrison activated, responded to threat 28350 | -1/Access | First assault squad dispatched 28460 | -1/Access | Unchained authorized (CL-0N3) 28551 | -1/Access | System corruption reached 10% 29089 | -1/Access | High security lockdown imminent 29110 | -1/Access | Destroyed 16 combat bots 29166 | -1/Access | Discovered new exit (range 3) 29169 | -1/Access | High security lockdown engaged 29170 | -1/Access | Identified exit to Surface 29322 | -1/Access | K-01 Serf reconstituted as Alpha 7 29322 | -1/Access | Spotted Alpha 7 29342 | -1/Access | Alpha 7 reconstituted as CL-0N3 29407 | -1/Access | Destroyed Striker 29408 | -1/Access | Spotted Striker 29411 | -1/Access | Destroyed Striker 29466 | -1/Access | Destroyed 13 combat bots 29490 | -1/Access | Spotted Executioner 29502 | -1/Access | Destroyed Executioner 29512 | -1/Access | Spotted Striker 29512 | -1/Access | Spotted Executioner 29512 | -1/Access | Spotted Executioner 29519 | -1/Access | Destroyed Executioner 29521 | -1/Access | Destroyed Striker 29529 | -1/Access | Destroyed Executioner 29553 | -1/Access | Destroyed 16 combat bots 29613 | -1/Access | Destroyed Striker 29613 | -1/Access | Destroyed Executioner 29637 | -1/Access | Destroyed 8 combat bots 29703 | -1/Access | Spotted Executioner 29705 | -1/Access | Destroyed Executioner 29740 | -1/Access | Destroyed 19 combat bots 29754 | -1/Access | Sterilization system engaged 29763 | -1/Access | Scanned by Researcher 29774 | -1/Access | Spotted Investigator 29774 | *** | Escaped! Last Messages --------------- 116. 29767_ Stasis bubble strength at 140. 29768_ L-61 Swordsman stasis bubble strength at 95. 29768_ Stasis bubble strength at 110. 29769_ L-61 Swordsman stasis bubble strength at 74. 29770_ Held in stasis. 29770_ Investigator is analyzing... 29770_ L-61 Swordsman stasis bubble strength at 53. 29771_ L-61 Swordsman stasis bubble strength at 32. 29771_ Stasis bubble strength at 80. 29772_ L-61 Swordsman stasis bubble strength at 11. 29772_ Stasis bubble strength at 50. 29773_ L-61 Swordsman stasis bubble bursts. 29773_ Stasis bubble strength at 20. 29774_ Stasis bubble bursts. Map ----- +----------------------------------------------------+ | ?????????????????????????????????????????????????? | | ?????????????????????????????????????????????????? | | ?????????????????????????????????????????????????? | | ?????????????????????????????????????????????????? | | ?????????????????????????????????????????????????? | | ?????????????????????????????????????????????????? | | ?????????????????????????????????????????????????? | | ?????????????????????????????????????????????????? | | ?????????????????????????????????????????????????? | | ?????????????????????????????????????????????????? | | ?????????????????????????????????????????????????? | | ?????????????????????????????????????????????????? | | ?????????????????????????????????????????????????? | | ?????????????????????????????????????? #????????? | | ?????????????????????????????????????? #????????? | | ?????????????????????????????????????? #????????? | | ?????????????????????????????????????? #????????? | | ??????????????????????????????????????= #????????? | | ????????????????????????????????##???#%=##???????? | | ????????????????????????????????[####"[ "##??????? | | ????????????????????????######"#!#"#%"!!" #??????? | | ????????????????????????? ["!!==[*!!!" #??????? | | ?????????????????????????? =!!"! *%[%!%%" #??????? | | ????????????????????" """"""!!"*]!=%!%!!" #??????? | | ????????????????????" =//![=="l=i!!=[=!!%???????? | | ????????????????????" !"@====gc=/l!!*==*!???????? | | ????????????????????" /![!!=[g=g*]=*!==!* ???? | | ????????????????????" =!][!!/!!!!*!|!%##???????? | | ????????????????????" """"""|="[[!!=![!!"????????? | | ????????????????????"???? *!"!==[!==!!##???????? | | ?????????????????????? !"" " [ [%##???????? | | ?????????????????????#########"#######!%"#???????? | | ?????????????????????????????????????# *##???????? | | ???????????????????????????????####??# =#????????? | | ??????????????????????????????## #[!#????????? | | ???????????????????????????### #*%#????????? | | ???????????????????????????# ] +*%#????????? | | ???????????????????????????# % = #=%#????????? | | ???????????????????????????# ! [/# ????? | | ???????????????????????????# % !# ?? | | ???????????????????????????# [*# ?? | | ???????????????????????????# #? | | ???????????????????????????# =#? | | ???????????????????????????# # %+?? = | | ???????????????????????????##### / #!%########## | | ##########?????????????????????#### [!%!= * | | # # #????????????????????????# %=*% | | # #????????????????#######?# !! | | # # ################### #?# ^ | | # ### | +----------------------------------------------------+ Best States ------------- Heat Dissipation 109 Coolant Potential 80 Energy Generation 61 Energy Capacity 1330 Matter Stores 300 Matter Capacity 300 Sight Range 16 Robot Scan Range 18 Terrain Scan Range 20 Terrain Scan Density 85 ECM Strength 1 EM Shielding 2 Armor Coverage 1800 Resistance: EM 90 Propulsion Shielding 33 Weapon Cycling 25 Evasion (%) 40 Targeting Accuracy 8 Core Analysis 6 Recoil Reduction 6 Offensive Hacking 38 Defensive Hacking 20 Relay Coupler Types 1 Relay Coupler Value 25 Item Schematics ----------------- Arm. Treads | -8/Materials | Hacked Combat Drone Bay | -7/Data Miner | Free Lgt. Regenerative Plating | -7/Data Miner | Free Cld. Cesium-ion Thruster | -7/Data Miner | Free Gravity Neutralizer | -7/Data Miner | Free Imp. Heavy Machine Gun | -7/Data Miner | Free Thunder Leg | -7/Data Miner | Free Imp. Recalibrator | -7/Data Miner | Free Enh. Gauss Cannon | -7/Data Miner | Free Power Amplifier | -7/Data Miner | Free Field Propulsion Drive | -7/Data Miner | Free Adv. Target Analyzer | -7/Data Miner | Free Arm. Heavy Treads | -5/Factory | Hacked Robot Schematics ------------------ R-10 Processor | -7/Data Miner | Free H-55 Commando | -7/Data Miner | Free S-27 Virus | -7/Data Miner | Free B-48 Gladiator | -7/Data Miner | Free L-41 Fighter | -7/Data Miner | Free Fabricated ------------ Nothing Repaired ---------- Ion Engine | 16% | -10/Materials Arm. Huge Wheel | 39% | -4/Factory Nova Cannon | 1% | -2/Research Studied --------- Wheel | -9/Materials | Hacked Lgt. Treads | -9/Materials | Hacked Arm. Huge Wheel | -5/Factory | Hacked Centrium Wheel | -3/Research | Hacked Alien Tech Used ----------------- None Achievements -------------- Deadly Precision Ultimate Loadout Challenges ------------ None Game ------ Seed AbsorptionPiercelightTreads Manual? 0 Play Time 05:19:49 Cumulative 188.6 hours Start 2026.09.19 @ 15:05:43 End 2026.09.19 @ 21:07:41 Sessions 3 Manual Loads 0 Difficulty Rogue Special Mode None Game No. 133 Rogue 133 Adventurer 0 Explorer 0 Win Type 0 Total 6 Types 5/0/1/0/0/0/0/0/0/0 Lore% 60 Gallery% 53 Achievement% 46 Wizard Run 0 Options --------- Layout 2 ASCII 0 Keyboard 1 Movement Numpad Keybinds 0 Fullscreen 2 Font 32/SmallcapsGlow Map View 50x44 Zoom Use 0% Tactical HUD 1 Map Filters NONE Filters NONE Steam 1 RUN: 2328fd40-fd07-43a7-9bb7-79d510c479bf